Workbook

Sheet Parameters (hidden)
A1: Relative Strength Index, MACD, Average True Range, EMA & Historical Volatility
A2: This spreadsheet calculates RSI, MACD, EMA, ATR and historical volatility from data downloaded from Yahoo
A3: Enter the ticker symbol and other parameters, and click the button
A5: Stock Ticker | B5: XOM
A6: Start Date | B6: 2013-01-03
A7: End Date | B7: 2013-09-02
A8: Days in Year | B8: 252
A9: Volatility Window | B9: 14
A10: RSI Window | B10: 14
A11: ATR Window | B11: 14

Sheet Data
L1: Monitor Markets & Economies
A2: Date | B2: Open | C2: High | D2: Low | E2: Close | F2: Volume | G2: Adj Close | H2: Daily Returns | I2: True Range | J2: Average True Range | L2: https://macrovar.com
A3: 2013-01-03 | B3: 88.46 | C3: 88.89 | D3: 88.16 | E3: 88.55 | F3: 13268200 | G3: 84.43 | I3: =ABS(C3-D3) -> 0.73
A4: 2013-01-04 | B4: 88.5 | C4: 89.09 | D4: 88.37 | E4: 88.96 | F4: 11427900 | G4: 84.82 | H4: =LN(E4/E3) -> 0.004619466273 | I4: =MAX(ABS(D4-E3),ABS(C4-E3),ABS(C4-D4)) -> 0.72
A5: 2013-01-07 | B5: 88.31 | C5: 88.49 | D5: 87.57 | E5: 87.93 | F5: 11799800 | G5: 83.83 | H5: -0.01164578711 | I5: =MAX(ABS(D5-E4),ABS(C5-E4),ABS(C5-D5)) -> 1.39
A6: 2013-01-08 | B6: 87.82 | C6: 88.48 | D6: 87.29 | E6: 88.48 | F6: 14226400 | G6: 84.36 | H6: 0.006235494383 | I6: =MAX(ABS(D6-E5),ABS(C6-E5),ABS(C6-D6)) -> 1.19
A7: 2013-01-09 | B7: 88.4 | C7: 88.54 | D7: 87.75 | E7: 88.14 | F7: 10892200 | G7: 84.03 | H7: -0.00385007836 | I7: =MAX(ABS(D7-E6),ABS(C7-E6),ABS(C7-D7)) -> 0.79
A8: 2013-01-10 | B8: 88.75 | C8: 89.48 | D8: 88.37 | E8: 89.1 | F8: 13099600 | G8: 84.95 | H8: 0.01083287506 | I8: =MAX(ABS(D8-E7),ABS(C8-E7),ABS(C8-D8)) -> 1.34
A9: 2013-01-11 | B9: 88.97 | C9: 89.71 | D9: 88.86 | E9: 89.61 | F9: 11645600 | G9: 85.44 | H9: 0.005707586419 | I9: =MAX(ABS(D9-E8),ABS(C9-E8),ABS(C9-D9)) -> 0.85
A10: 2013-01-14 | B10: 89.46 | C10: 89.75 | D10: 89.32 | E10: 89.58 | F10: 9606700 | G10: 85.41 | H10: -0.000334840117 | I10: =MAX(ABS(D10-E9),ABS(C10-E9),ABS(C10-D10)) -> 0.43
A11: 2013-01-15 | B11: 89.18 | C11: 89.61 | D11: 89 | E11: 89.53 | F11: 9195400 | G11: 85.36 | H11: -0.0005583161331 | I11: =MAX(ABS(D11-E10),ABS(C11-E10),ABS(C11-D11)) -> 0.61
A12: 2013-01-16 | B12: 89.16 | C12: 89.48 | D12: 89.07 | E12: 89.47 | F12: 9645000 | G12: 85.3 | H12: -0.0006703910866 | I12: =MAX(ABS(D12-E11),ABS(C12-E11),ABS(C12-D12)) -> 0.46
A13: 2013-01-17 | B13: 89.76 | C13: 90.94 | D13: 89.6 | E13: 90.2 | F13: 13400300 | G13: 86 | H13: 0.008126053509 | I13: =MAX(ABS(D13-E12),ABS(C13-E12),ABS(C13-D13)) -> 1.47
A14: 2013-01-18 | B14: 90.09 | C14: 90.83 | D14: 89.83 | E14: 90.8 | F14: 17196000 | G14: 86.57 | H14: 0.006629858539 | I14: =MAX(ABS(D14-E13),ABS(C14-E13),ABS(C14-D14)) -> 1
A15: 2013-01-22 | B15: 90.27 | C15: 90.94 | D15: 90.21 | E15: 90.92 | F15: 11897500 | G15: 86.69 | H15: 0.001320713377 | I15: =MAX(ABS(D15-E14),ABS(C15-E14),ABS(C15-D15)) -> 0.73
A16: 2013-01-23 | B16: 90.5 | C16: 90.88 | D16: 90.42 | E16: 90.7 | F16: 10906800 | G16: 86.48 | H16: -0.002422641863 | I16: =MAX(ABS(D16-E15),ABS(C16-E15),ABS(C16-D16)) -> 0.5 | J16: =AVERAGE(I3:I16) -> 0.8721428571
A17: 2013-01-24 | B17: 90.88 | C17: 91.72 | D17: 90.75 | E17: 91.35 | F17: 11100000 | G17: 87.1 | H17: 0.007140925703 | I17: =MAX(ABS(D17-E16),ABS(C17-E16),ABS(C17-D17)) -> 1.02 | J17: =(J16*13+I17)/14 -> 0.8827040816
A18: 2013-01-25 | B18: 91.57 | C18: 91.8 | D18: 91.13 | E18: 91.73 | F18: 11090600 | G18: 87.46 | H18: 0.004151196698 | I18: =MAX(ABS(D18-E17),ABS(C18-E17),ABS(C18-D18)) -> 0.67 | J18: 0.8675109329
A19: 2013-01-28 | B19: 91.67 | C19: 91.67 | D19: 90.77 | E19: 91.11 | F19: 11617500 | G19: 86.87 | H19: -0.006781911796 | I19: =MAX(ABS(D19-E18),ABS(C19-E18),ABS(C19-D19)) -> 0.96 | J19: 0.8741172949
A20: 2013-01-29 | B20: 91.21 | C20: 91.93 | D20: 91.2 | E20: 91.76 | F20: 11700600 | G20: 87.49 | H20: 0.007108905095 | I20: =MAX(ABS(D20-E19),ABS(C20-E19),ABS(C20-D20)) -> 0.82 | J20: 0.8702517738
A21: 2013-01-30 | B21: 91.17 | C21: 91.72 | D21: 90.38 | E21: 90.67 | F21: 15645400 | G21: 86.45 | H21: -0.01194993116 | I21: =MAX(ABS(D21-E20),ABS(C21-E20),ABS(C21-D21)) -> 1.38 | J21: 0.9066623614
A22: 2013-01-31 | B22: 90.69 | C22: 91.21 | D22: 89.74 | E22: 89.97 | F22: 15991500 | G22: 85.78 | H22: -0.007750260229 | I22: =MAX(ABS(D22-E21),ABS(C22-E21),ABS(C22-D22)) -> 1.47 | J22: 0.9469007642
A23: 2013-02-01 | B23: 90.44 | C23: 90.5 | D23: 89.36 | E23: 90.04 | F23: 15699200 | G23: 85.85 | H23: 0.0007777346095 | I23: =MAX(ABS(D23-E22),ABS(C23-E22),ABS(C23-D23)) -> 1.14 | J23: 0.9606935667
A24: 2013-02-04 | B24: 89.41 | C24: 89.62 | D24: 88.84 | E24: 89.15 | F24: 13347300 | G24: 85 | H24: -0.009933671729 | I24: =MAX(ABS(D24-E23),ABS(C24-E23),ABS(C24-D24)) -> 1.2 | J24: 0.9777868834
A25: 2013-02-05 | B25: 89.88 | C25: 90.19 | D25: 89.42 | E25: 89.74 | F25: 11679700 | G25: 85.56 | H25: 0.006596256239 | I25: =MAX(ABS(D25-E24),ABS(C25-E24),ABS(C25-D25)) -> 1.04 | J25: 0.9822306774
A26: 2013-02-06 | B26: 89.37 | C26: 89.89 | D26: 89.16 | E26: 89.79 | F26: 11768700 | G26: 85.61 | H26: 0.0005570099849 | I26: =MAX(ABS(D26-E25),ABS(C26-E25),ABS(C26-D26)) -> 0.73 | J26: 0.9642142005
A27: 2013-02-07 | B27: 89.21 | C27: 89.22 | D27: 87.61 | E27: 88.25 | F27: 13463300 | G27: 84.68 | H27: -0.01729991472 | I27: =MAX(ABS(D27-E26),ABS(C27-E26),ABS(C27-D27)) -> 2.18 | J27: 1.051056043
A28: 2013-02-08 | B28: 88.5 | C28: 88.8 | D28: 88.11 | E28: 88.61 | F28: 11412300 | G28: 85.02 | H28: 0.004071022246 | I28: =MAX(ABS(D28-E27),ABS(C28-E27),ABS(C28-D28)) -> 0.69 | J28: 1.025266326
A29: 2013-02-11 | B29: 88.35 | C29: 88.51 | D29: 87.97 | E29: 88.28 | F29: 8764700 | G29: 84.71 | H29: -0.003731136671 | I29: =MAX(ABS(D29-E28),ABS(C29-E28),ABS(C29-D29)) -> 0.64 | J29: 0.9977473026
A30: 2013-02-12 | B30: 88.25 | C30: 88.62 | D30: 87.92 | E30: 88.46 | F30: 9752100 | G30: 84.88 | H30: 0.002036891052 | I30: =MAX(ABS(D30-E29),ABS(C30-E29),ABS(C30-D30)) -> 0.7 | J30: 0.9764796382
A31: 2013-02-13 | B31: 88.46 | C31: 88.77 | D31: 88.24 | E31: 88.67 | F31: 8940300 | G31: 85.08 | H31: 0.002371140952 | I31: =MAX(ABS(D31-E30),ABS(C31-E30),ABS(C31-D31)) -> 0.53 | J31: 0.9445882354
A32: 2013-02-14 | B32: 88.34 | C32: 88.81 | D32: 88.06 | E32: 88.52 | F32: 13238900 | G32: 84.94 | H32: -0.001693098209 | I32: =MAX(ABS(D32-E31),ABS(C32-E31),ABS(C32-D32)) -> 0.75 | J32: 0.9306890758
A33: 2013-02-15 | B33: 88.57 | C33: 88.61 | D33: 87.8 | E33: 88.36 | F33: 15696900 | G33: 84.78 | H33: -0.001809136631 | I33: =MAX(ABS(D33-E32),ABS(C33-E32),ABS(C33-D33)) -> 0.81 | J33: 0.9220684275
A34: 2013-02-19 | B34: 88.54 | C34: 89.41 | D34: 88.38 | E34: 89.32 | F34: 12158900 | G34: 85.7 | H34: 0.01080604842 | I34: =MAX(ABS(D34-E33),ABS(C34-E33),ABS(C34-D34)) -> 1.05 | J34: 0.931206397
A35: 2013-02-20 | B35: 89.14 | C35: 89.82 | D35: 88.9 | E35: 88.97 | F35: 13936400 | G35: 85.37 | H35: -0.003926192715 | I35: =MAX(ABS(D35-E34),ABS(C35-E34),ABS(C35-D35)) -> 0.92 | J35: 0.93040594
A36: 2013-02-21 | B36: 88.79 | C36: 89.02 | D36: 88.36 | E36: 88.59 | F36: 10939800 | G36: 85 | H36: =LN(E36/E35) -> -0.004280249833 | I36: =MAX(ABS(D36-E35),ABS(C36-E35),ABS(C36-D36)) -> 0.66 | J36: 0.91109123
A37: 2013-02-22 | B37: 89.02 | C37: 89.28 | D37: 88.4 | E37: 89.2 | F37: 10260200 | G37: 85.59 | H37: 0.006862055162 | I37: =MAX(ABS(D37-E36),ABS(C37-E36),ABS(C37-D37)) -> 0.88 | J37: 0.9088704279
A38: 2013-02-25 | B38: 89.88 | C38: 90.19 | D38: 87.7 | E38: 87.7 | F38: 15302900 | G38: 84.15 | H38: -0.01695914021 | I38: =MAX(ABS(D38-E37),ABS(C38-E37),ABS(C38-D38)) -> 2.49 | J38: 1.021808254
A39: 2013-02-26 | B39: 88.5 | C39: 88.98 | D39: 87.76 | E39: 88.51 | F39: 15073200 | G39: 84.93 | H39: 0.009193640603 | I39: =MAX(ABS(D39-E38),ABS(C39-E38),ABS(C39-D39)) -> 1.28 | J39: 1.040250522
A40: 2013-02-27 | B40: 88.5 | C40: 89.65 | D40: 88.31 | E40: 89.53 | F40: 11195200 | G40: 85.91 | H40: 0.01145822467 | I40: =MAX(ABS(D40-E39),ABS(C40-E39),ABS(C40-D40)) -> 1.34 | J40: 1.061661199
A41: 2013-02-28 | B41: 89.67 | C41: 89.81 | D41: 89.03 | E41: 89.55 | F41: 14552000 | G41: 85.92 | H41: 0.0002233638607 | I41: =MAX(ABS(D41-E40),ABS(C41-E40),ABS(C41-D41)) -> 0.78 | J41: 1.041542542
A42: 2013-03-01 | B42: 89.07 | C42: 89.68 | D42: 88.92 | E42: 89.43 | F42: 11301600 | G42: 85.81 | H42: -0.001340932149 | I42: =MAX(ABS(D42-E41),ABS(C42-E41),ABS(C42-D42)) -> 0.76 | J42: 1.02143236
A43: 2013-03-04 | B43: 89.13 | C43: 89.25 | D43: 88.46 | E43: 88.95 | F43: 10994000 | G43: 85.35 | H43: -0.005381782246 | I43: =MAX(ABS(D43-E42),ABS(C43-E42),ABS(C43-D43)) -> 0.97 | J43: 1.01775862
A44: 2013-03-05 | B44: 89.48 | C44: 90.15 | D44: 89.29 | E44: 89.61 | F44: 13072600 | G44: 85.98 | H44: 0.007392506784 | I44: =MAX(ABS(D44-E43),ABS(C44-E43),ABS(C44-D44)) -> 1.2 | J44: 1.030775862
A45: 2013-03-06 | B45: 89.6 | C45: 89.95 | D45: 89.05 | E45: 89.56 | F45: 13234400 | G45: 85.93 | H45: -0.0005581291656 | I45: =MAX(ABS(D45-E44),ABS(C45-E44),ABS(C45-D45)) -> 0.9 | J45: 1.021434729
A46: 2013-03-07 | B46: 89.63 | C46: 89.76 | D46: 88.68 | E46: 88.71 | F46: 12905300 | G46: 85.12 | H46: -0.009536169198 | I46: =MAX(ABS(D46-E45),ABS(C46-E45),ABS(C46-D46)) -> 1.08 | J46: 1.025617962
A47: 2013-03-08 | B47: 89.01 | C47: 89.23 | D47: 88.35 | E47: 88.97 | F47: 11896300 | G47: 85.37 | H47: 0.002926611724 | I47: =MAX(ABS(D47-E46),ABS(C47-E46),ABS(C47-D47)) -> 0.88 | J47: 1.015216679
A48: 2013-03-11 | B48: 89.01 | C48: 89.55 | D48: 88.54 | E48: 89.16 | F48: 12454800 | G48: 85.55 | H48: 0.002133274261 | I48: =MAX(ABS(D48-E47),ABS(C48-E47),ABS(C48-D48)) -> 1.01 | J48: 1.014844059
A49: 2013-03-12 | B49: 89.45 | C49: 89.91 | D49: 89.01 | E49: 89.16 | F49: 11470000 | G49: 85.55 | H49: 0 | I49: =MAX(ABS(D49-E48),ABS(C49-E48),ABS(C49-D49)) -> 0.9 | J49: =(J48*13+I49)/14 -> 1.006640912
A50: 2013-03-13 | B50: 89.02 | C50: 89.5 | D50: 88.83 | E50: 89.26 | F50: 10539900 | G50: 85.65 | H50: 0.001120950683 | I50: =MAX(ABS(D50-E49),ABS(C50-E49),ABS(C50-D50)) -> 0.67 | J50: 0.9825951329
A51: 2013-03-14 | B51: 89.41 | C51: 89.91 | D51: 89.41 | E51: 89.83 | F51: 13775500 | G51: 86.19 | H51: 0.00636553604 | I51: =MAX(ABS(D51-E50),ABS(C51-E50),ABS(C51-D51)) -> 0.65 | J51: 0.9588383377
A52: 2013-03-15 | B52: 89.2 | C52: 89.61 | D52: 88.79 | E52: 89.37 | F52: 29240100 | G52: 85.75 | H52: -0.005133939848 | I52: =MAX(ABS(D52-E51),ABS(C52-E51),ABS(C52-D52)) -> 1.04 | J52: 0.9646355993
A53: 2013-03-18 | B53: 88.74 | C53: 89.39 | D53: 88.55 | E53: 88.77 | F53: 11553700 | G53: 85.18 | H53: -0.006736300313 | I53: =MAX(ABS(D53-E52),ABS(C53-E52),ABS(C53-D53)) -> 0.84 | J53: 0.9557330565
A54: 2013-03-19 | B54: 88.89 | C54: 89.09 | D54: 88.02 | E54: 88.58 | F54: 11987900 | G54: 84.99 | H54: -0.002142656585 | I54: =MAX(ABS(D54-E53),ABS(C54-E53),ABS(C54-D54)) -> 1.07 | J54: 0.963894981
A55: 2013-03-20 | B55: 88.95 | C55: 89.21 | D55: 88.3 | E55: 88.63 | F55: 11319000 | G55: 85.04 | H55: 0.0005643022553 | I55: =MAX(ABS(D55-E54),ABS(C55-E54),ABS(C55-D55)) -> 0.91 | J55: 0.9600453395
A56: 2013-03-21 | B56: 88.12 | C56: 88.64 | D56: 87.9 | E56: 88.17 | F56: 13447500 | G56: 84.6 | H56: -0.005203631651 | I56: =MAX(ABS(D56-E55),ABS(C56-E55),ABS(C56-D56)) -> 0.74 | J56: 0.9443278153
A57: 2013-03-22 | B57: 88.4 | C57: 89.29 | D57: 88.32 | E57: 89.29 | F57: 10786600 | G57: 85.67 | H57: 0.01262273043 | I57: =MAX(ABS(D57-E56),ABS(C57-E56),ABS(C57-D57)) -> 1.12 | J57: 0.9568758284
A58: 2013-03-25 | B58: 89.5 | C58: 89.9 | D58: 88.66 | E58: 89.02 | F58: 12900800 | G58: 85.42 | H58: -0.003028435941 | I58: =MAX(ABS(D58-E57),ABS(C58-E57),ABS(C58-D58)) -> 1.24 | J58: 0.9770989836
A59: 2013-03-26 | B59: 89.41 | C59: 90.3 | D59: 89.36 | E59: 90.13 | F59: 12329600 | G59: 86.48 | H59: 0.01239200898 | I59: =MAX(ABS(D59-E58),ABS(C59-E58),ABS(C59-D59)) -> 1.28 | J59: 0.9987347704
A60: 2013-03-27 | B60: 89.56 | C60: 90.74 | D60: 89.47 | E60: 90.58 | F60: 12350800 | G60: 86.91 | H60: 0.00498036556 | I60: =MAX(ABS(D60-E59),ABS(C60-E59),ABS(C60-D60)) -> 1.27 | J60: 1.018110858
A61: 2013-03-28 | B61: 90.64 | C61: 90.98 | D61: 89.99 | E61: 90.11 | F61: 17485200 | G61: 86.46 | H61: -0.005202291881 | I61: =MAX(ABS(D61-E60),ABS(C61-E60),ABS(C61-D61)) -> 0.99 | J61: 1.01610294
A62: 2013-04-01 | B62: 90.13 | C62: 90.99 | D62: 89.98 | E62: 90.77 | F62: 9414200 | G62: 87.1 | H62: 0.007297688292 | I62: =MAX(ABS(D62-E61),ABS(C62-E61),ABS(C62-D62)) -> 1.01 | J62: 1.015667016
A63: 2013-04-02 | B63: 90.59 | C63: 90.92 | D63: 90.28 | E63: 90.58 | F63: 9991800 | G63: 86.91 | H63: -0.00209539641 | I63: =MAX(ABS(D63-E62),ABS(C63-E62),ABS(C63-D63)) -> 0.64 | J63: 0.9888336573
A64: 2013-04-03 | B64: 90.65 | C64: 90.83 | D64: 89.86 | E64: 89.93 | F64: 12197100 | G64: 86.29 | H64: -0.007201848202 | I64: =MAX(ABS(D64-E63),ABS(C64-E63),ABS(C64-D64)) -> 0.97 | J64: 0.9874883961
A65: 2013-04-04 | B65: 90.1 | C65: 90.33 | D65: 89.22 | E65: 89.77 | F65: 11582000 | G65: 86.14 | H65: -0.001780746158 | I65: =MAX(ABS(D65-E64),ABS(C65-E64),ABS(C65-D65)) -> 1.11 | J65: 0.9962392249
A66: 2013-04-05 | B66: 88.61 | C66: 89.21 | D66: 88.4 | E66: 89.01 | F66: 12771600 | G66: 85.41 | H66: -0.008502120798 | I66: =MAX(ABS(D66-E65),ABS(C66-E65),ABS(C66-D66)) -> 1.37 | J66: 1.022936423
A67: 2013-04-08 | B67: 89.11 | C67: 89.11 | D67: 88.15 | E67: 88.6 | F67: 11013900 | G67: 85.01 | H67: -0.00461686536 | I67: =MAX(ABS(D67-E66),ABS(C67-E66),ABS(C67-D67)) -> 0.96 | J67: 1.018440964
A68: 2013-04-09 | B68: 88.69 | C68: 89.34 | D68: 88.59 | E68: 88.77 | F68: 10753400 | G68: 85.18 | H68: =LN(E68/E67) -> 0.001916897469 | I68: =MAX(ABS(D68-E67),ABS(C68-E67),ABS(C68-D68)) -> 0.75 | J68: 0.9992666097
A69: 2013-04-10 | B69: 88.45 | C69: 89.16 | D69: 88.2 | E69: 88.68 | F69: 14823700 | G69: 85.09 | H69: -0.001014370332 | I69: =MAX(ABS(D69-E68),ABS(C69-E68),ABS(C69-D69)) -> 0.96 | J69: 0.9964618519
A70: 2013-04-11 | B70: 88.95 | C70: 89.27 | D70: 88.23 | E70: 89.22 | F70: 14979900 | G70: 85.61 | H70: 0.006070844952 | I70: =MAX(ABS(D70-E69),ABS(C70-E69),ABS(C70-D70)) -> 1.04 | J70: 0.9995717196
A71: 2013-04-12 | B71: 88.88 | C71: 89.19 | D71: 88.41 | E71: 88.99 | F71: 11505100 | G71: 85.39 | H71: -0.002581225831 | I71: =MAX(ABS(D71-E70),ABS(C71-E70),ABS(C71-D71)) -> 0.81 | J71: 0.9860308825
A72: 2013-04-15 | B72: 88.29 | C72: 88.67 | D72: 86.27 | E72: 86.49 | F72: 19626200 | G72: 82.99 | H72: -0.02849520355 | I72: =MAX(ABS(D72-E71),ABS(C72-E71),ABS(C72-D72)) -> 2.72 | J72: 1.109885819
A73: 2013-04-16 | B73: 87.19 | C73: 87.23 | D73: 86.09 | E73: 86.61 | F73: 14578800 | G73: 83.1 | H73: 0.001386482025 | I73: =MAX(ABS(D73-E72),ABS(C73-E72),ABS(C73-D73)) -> 1.14 | J73: 1.112036832
A74: 2013-04-17 | B74: 86.21 | C74: 86.38 | D74: 85.02 | E74: 86.08 | F74: 17341200 | G74: 82.59 | H74: -0.006138185929 | I74: =MAX(ABS(D74-E73),ABS(C74-E73),ABS(C74-D74)) -> 1.59 | J74: 1.146177059
A75: 2013-04-18 | B75: 86.28 | C75: 87.08 | D75: 85.78 | E75: 86.62 | F75: 14730400 | G75: 83.11 | H75: 0.006253639373 | I75: =MAX(ABS(D75-E74),ABS(C75-E74),ABS(C75-D75)) -> 1.3 | J75: 1.157164412
A76: 2013-04-19 | B76: 87.27 | C76: 87.49 | D76: 86.43 | E76: 87.45 | F76: 18393300 | G76: 83.91 | H76: 0.009536465678 | I76: =MAX(ABS(D76-E75),ABS(C76-E75),ABS(C76-D76)) -> 1.06 | J76: 1.150224096
A77: 2013-04-22 | B77: 87.61 | C77: 88.32 | D77: 87.29 | E77: 88.09 | F77: 11262000 | G77: 84.52 | H77: 0.007291817657 | I77: =MAX(ABS(D77-E76),ABS(C77-E76),ABS(C77-D77)) -> 1.03 | J77: 1.141636661
A78: 2013-04-23 | B78: 88.39 | C78: 89.49 | D78: 87.94 | E78: 89.3 | F78: 15567700 | G78: 85.68 | H78: 0.01364246876 | I78: =MAX(ABS(D78-E77),ABS(C78-E77),ABS(C78-D78)) -> 1.55 | J78: 1.170805471
A79: 2013-04-24 | B79: 89.45 | C79: 89.89 | D79: 89.35 | E79: 89.43 | F79: 13028800 | G79: 85.81 | H79: 0.001454708476 | I79: =MAX(ABS(D79-E78),ABS(C79-E78),ABS(C79-D79)) -> 0.59 | J79: 1.129319366
A80: 2013-04-25 | B80: 88.89 | C80: 88.9 | D80: 87.65 | E80: 88.07 | F80: 16328700 | G80: 84.5 | H80: -0.01532424354 | I80: =MAX(ABS(D80-E79),ABS(C80-E79),ABS(C80-D80)) -> 1.78 | J80: 1.175796554
A81: 2013-04-26 | B81: 87.81 | C81: 88.28 | D81: 87.6 | E81: 88 | F81: 10791800 | G81: 84.44 | H81: -0.0007951383392 | I81: =MAX(ABS(D81-E80),ABS(C81-E80),ABS(C81-D81)) -> 0.68 | J81: =(J80*13+I81)/14 -> 1.140382514
A82: 2013-04-29 | B82: 88.26 | C82: 88.83 | D82: 88.01 | E82: 88.21 | F82: 11093000 | G82: 84.64 | H82: 0.002383520792 | I82: =MAX(ABS(D82-E81),ABS(C82-E81),ABS(C82-D82)) -> 0.83 | J82: 1.118212335
A83: 2013-04-30 | B83: 88.26 | C83: 88.99 | D83: 87.76 | E83: 88.99 | F83: 14572600 | G83: 85.39 | H83: 0.008803668598 | I83: =MAX(ABS(D83-E82),ABS(C83-E82),ABS(C83-D83)) -> 1.23 | J83: 1.126197168
A84: 2013-05-01 | B84: 88.52 | C84: 88.84 | D84: 87.48 | E84: 87.51 | F84: 11616500 | G84: 83.97 | H84: -0.01677093132 | I84: =MAX(ABS(D84-E83),ABS(C84-E83),ABS(C84-D84)) -> 1.51 | J84: 1.153611656
A85: 2013-05-02 | B85: 87.98 | C85: 88.84 | D85: 87.74 | E85: 88.63 | F85: 11330100 | G85: 85.04 | H85: 0.0127173282 | I85: =MAX(ABS(D85-E84),ABS(C85-E84),ABS(C85-D85)) -> 1.33 | J85: 1.166210823
A86: 2013-05-03 | B86: 89 | C86: 90.19 | D86: 88.92 | E86: 90.02 | F86: 13036600 | G86: 86.38 | H86: 0.01556146711 | I86: =MAX(ABS(D86-E85),ABS(C86-E85),ABS(C86-D86)) -> 1.56 | J86: 1.194338622
A87: 2013-05-06 | B87: 90.25 | C87: 90.88 | D87: 89.93 | E87: 90.58 | F87: 10613400 | G87: 86.91 | H87: 0.006201570263 | I87: =MAX(ABS(D87-E86),ABS(C87-E86),ABS(C87-D87)) -> 0.95 | J87: 1.176885863
A88: 2013-05-07 | B88: 90.62 | C88: 91.15 | D88: 90.14 | E88: 91.15 | F88: 11088900 | G88: 87.46 | H88: 0.006273062997 | I88: =MAX(ABS(D88-E87),ABS(C88-E87),ABS(C88-D88)) -> 1.01 | J88: 1.164965444
A89: 2013-05-08 | B89: 91.05 | C89: 91.85 | D89: 91.03 | E89: 91.7 | F89: 13638300 | G89: 87.99 | H89: 0.006015878138 | I89: =MAX(ABS(D89-E88),ABS(C89-E88),ABS(C89-D89)) -> 0.82 | J89: 1.140325055
A90: 2013-05-09 | B90: 91.14 | C90: 91.56 | D90: 90.69 | E90: 91.03 | F90: 13771900 | G90: 87.95 | H90: -0.007333256745 | I90: =MAX(ABS(D90-E89),ABS(C90-E89),ABS(C90-D90)) -> 1.01 | J90: 1.131016123
A91: 2013-05-10 | B91: 90.87 | C91: 90.95 | D91: 89.79 | E91: 90.14 | F91: 10975400 | G91: 87.09 | H91: -0.009825105255 | I91: =MAX(ABS(D91-E90),ABS(C91-E90),ABS(C91-D91)) -> 1.24 | J91: 1.138800686
A92: 2013-05-13 | B92: 89.8 | C92: 90.14 | D92: 89.43 | E92: 90.1 | F92: 9810100 | G92: 87.05 | H92: -0.0004438526482 | I92: =MAX(ABS(D92-E91),ABS(C92-E91),ABS(C92-D92)) -> 0.71 | J92: 1.108172065
A93: 2013-05-14 | B93: 90.15 | C93: 91.19 | D93: 90.02 | E93: 91.11 | F93: 9890300 | G93: 88.03 | H93: 0.01114740311 | I93: =MAX(ABS(D93-E92),ABS(C93-E92),ABS(C93-D93)) -> 1.17 | J93: 1.112588346
A94: 2013-05-15 | B94: 90.64 | C94: 91.32 | D94: 90.41 | E94: 91.24 | F94: 10399400 | G94: 88.15 | H94: 0.00142582969 | I94: =MAX(ABS(D94-E93),ABS(C94-E93),ABS(C94-D94)) -> 0.91 | J94: 1.09811775
A95: 2013-05-16 | B95: 90.8 | C95: 91.29 | D95: 90.5 | E95: 90.7 | F95: 10469600 | G95: 87.63 | H95: -0.005936040295 | I95: =MAX(ABS(D95-E94),ABS(C95-E94),ABS(C95-D95)) -> 0.79 | J95: 1.076109339
A96: 2013-05-17 | B96: 91.07 | C96: 91.88 | D96: 90.53 | E96: 91.76 | F96: 12721300 | G96: 88.65 | H96: 0.0116191157 | I96: =MAX(ABS(D96-E95),ABS(C96-E95),ABS(C96-D96)) -> 1.35 | J96: 1.095672958
A97: 2013-05-20 | B97: 91.61 | C97: 92.69 | D97: 91.46 | E97: 92.52 | F97: 12417700 | G97: 89.39 | H97: 0.008248364542 | I97: =MAX(ABS(D97-E96),ABS(C97-E96),ABS(C97-D97)) -> 1.23 | J97: 1.105267747
A98: 2013-05-21 | B98: 92.67 | C98: 93.43 | D98: 92.38 | E98: 92.8 | F98: 12519900 | G98: 89.66 | H98: 0.003021802429 | I98: =MAX(ABS(D98-E97),ABS(C98-E97),ABS(C98-D98)) -> 1.05 | J98: 1.10132005
A99: 2013-05-22 | B99: 92.83 | C99: 93.5 | D99: 91.81 | E99: 92.19 | F99: 19253300 | G99: 89.07 | H99: -0.006594974982 | I99: =MAX(ABS(D99-E98),ABS(C99-E98),ABS(C99-D99)) -> 1.69 | J99: 1.143368618
A100: 2013-05-23 | B100: 91.56 | C100: 92.36 | D100: 91.36 | E100: 91.79 | F100: 15357300 | G100: 88.68 | H100: =LN(E100/E99) -> -0.00434830558 | I100: =MAX(ABS(D100-E99),ABS(C100-E99),ABS(C100-D100)) -> 1 | J100: 1.133128003
A101: 2013-05-24 | B101: 91.38 | C101: 91.77 | D101: 91 | E101: 91.53 | F101: 12771900 | G101: 88.43 | H101: -0.002836571834 | I101: =MAX(ABS(D101-E100),ABS(C101-E100),ABS(C101-D101)) -> 0.79 | J101: 1.10861886
A102: 2013-05-28 | B102: 92.94 | C102: 93.18 | D102: 91.76 | E102: 92.38 | F102: 15197800 | G102: 89.25 | H102: 0.009243717606 | I102: =MAX(ABS(D102-E101),ABS(C102-E101),ABS(C102-D102)) -> 1.65 | J102: 1.147288941
A103: 2013-05-29 | B103: 91.76 | C103: 92.42 | D103: 91.59 | E103: 92.08 | F103: 11563200 | G103: 88.96 | H103: -0.003252740589 | I103: =MAX(ABS(D103-E102),ABS(C103-E102),ABS(C103-D103)) -> 0.83 | J103: 1.124625445
A104: 2013-05-30 | B104: 91.97 | C104: 92.68 | D104: 91.6 | E104: 92.09 | F104: 9734700 | G104: 88.97 | H104: 0.0001085953196 | I104: =MAX(ABS(D104-E103),ABS(C104-E103),ABS(C104-D104)) -> 1.08 | J104: 1.121437914
A105: 2013-05-31 | B105: 91.95 | C105: 92.37 | D105: 90.46 | E105: 90.47 | F105: 17917400 | G105: 87.41 | H105: -0.0177480557 | I105: =MAX(ABS(D105-E104),ABS(C105-E104),ABS(C105-D105)) -> 1.91 | J105: 1.177763777
A106: 2013-06-03 | B106: 90.53 | C106: 91.51 | D106: 90.48 | E106: 91.46 | F106: 14177500 | G106: 88.36 | H106: 0.01088341419 | I106: =MAX(ABS(D106-E105),ABS(C106-E105),ABS(C106-D106)) -> 1.04 | J106: 1.167923507
A107: 2013-06-04 | B107: 91.18 | C107: 91.49 | D107: 90.22 | E107: 90.79 | F107: 12481300 | G107: 87.72 | H107: -0.007352570846 | I107: =MAX(ABS(D107-E106),ABS(C107-E106),ABS(C107-D107)) -> 1.27 | J107: 1.175214685
A108: 2013-06-05 | B108: 90.68 | C108: 91.12 | D108: 89.61 | E108: 89.65 | F108: 12888000 | G108: 86.62 | H108: -0.01263594733 | I108: =MAX(ABS(D108-E107),ABS(C108-E107),ABS(C108-D108)) -> 1.51 | J108: 1.199127922
A109: 2013-06-06 | B109: 89.45 | C109: 90.23 | D109: 89 | E109: 90.23 | F109: 15393300 | G109: 87.18 | H109: 0.006448765955 | I109: =MAX(ABS(D109-E108),ABS(C109-E108),ABS(C109-D109)) -> 1.23 | J109: 1.20133307
A110: 2013-06-07 | B110: 90.89 | C110: 91.5 | D110: 90.49 | E110: 91.45 | F110: 12504700 | G110: 88.35 | H110: 0.01343040883 | I110: =MAX(ABS(D110-E109),ABS(C110-E109),ABS(C110-D110)) -> 1.27 | J110: 1.206237851
A111: 2013-06-10 | B111: 91.93 | C111: 91.94 | D111: 90.87 | E111: 91.12 | F111: 10372300 | G111: 88.04 | H111: -0.003615055698 | I111: =MAX(ABS(D111-E110),ABS(C111-E110),ABS(C111-D111)) -> 1.07 | J111: 1.196506576
A112: 2013-06-11 | B112: 90.38 | C112: 91.04 | D112: 90.23 | E112: 90.46 | F112: 10739400 | G112: 87.4 | H112: -0.007269555089 | I112: =MAX(ABS(D112-E111),ABS(C112-E111),ABS(C112-D112)) -> 0.89 | J112: 1.174613249
A113: 2013-06-12 | B113: 91.13 | C113: 91.32 | D113: 89.59 | E113: 89.74 | F113: 10864500 | G113: 86.7 | H113: -0.007991163502 | I113: =MAX(ABS(D113-E112),ABS(C113-E112),ABS(C113-D113)) -> 1.73 | J113: =(J112*13+I113)/14 -> 1.214283731
A114: 2013-06-13 | B114: 89.63 | C114: 91.71 | D114: 89.61 | E114: 91.33 | F114: 13501300 | G114: 88.24 | H114: 0.01756272016 | I114: =MAX(ABS(D114-E113),ABS(C114-E113),ABS(C114-D114)) -> 2.1 | J114: 1.277549179
A115: 2013-06-14 | B115: 91.16 | C115: 91.3 | D115: 90.29 | E115: 90.58 | F115: 12158400 | G115: 87.51 | H115: -0.008245882576 | I115: =MAX(ABS(D115-E114),ABS(C115-E114),ABS(C115-D115)) -> 1.04 | J115: 1.260581381
A116: 2013-06-17 | B116: 90.97 | C116: 91.77 | D116: 90.77 | E116: 91.51 | F116: 12026400 | G116: 88.41 | H116: 0.0102148178 | I116: =MAX(ABS(D116-E115),ABS(C116-E115),ABS(C116-D116)) -> 1.19 | J116: 1.255539853
A117: 2013-06-18 | B117: 91.36 | C117: 92.06 | D117: 91.26 | E117: 91.93 | F117: 10678200 | G117: 88.82 | H117: 0.004579161948 | I117: =MAX(ABS(D117-E116),ABS(C117-E116),ABS(C117-D117)) -> 0.8 | J117: 1.223001292
A118: 2013-06-19 | B118: 91.79 | C118: 92.27 | D118: 91 | E118: 91 | F118: 14189500 | G118: 87.92 | H118: -0.01016791136 | I118: =MAX(ABS(D118-E117),ABS(C118-E117),ABS(C118-D118)) -> 1.27 | J118: 1.226358343
A119: 2013-06-20 | B119: 90.24 | C119: 90.52 | D119: 88.79 | E119: 89.05 | F119: 21077700 | G119: 86.04 | H119: -0.02166149678 | I119: =MAX(ABS(D119-E118),ABS(C119-E118),ABS(C119-D119)) -> 2.21 | J119: 1.296618461
A120: 2013-06-21 | B120: 89.76 | C120: 90.14 | D120: 88.85 | E120: 89.48 | F120: 25493800 | G120: 86.45 | H120: 0.004817126886 | I120: =MAX(ABS(D120-E119),ABS(C120-E119),ABS(C120-D120)) -> 1.29 | J120: 1.296145714
A121: 2013-06-24 | B121: 88.95 | C121: 89.5 | D121: 88.02 | E121: 88.48 | F121: 17653000 | G121: 85.49 | H121: -0.01123859885 | I121: =MAX(ABS(D121-E120),ABS(C121-E120),ABS(C121-D121)) -> 1.48 | J121: 1.309278163
A122: 2013-06-25 | B122: 89.58 | C122: 89.62 | D122: 88.48 | E122: 89.11 | F122: 15790100 | G122: 86.09 | H122: 0.007095023851 | I122: =MAX(ABS(D122-E121),ABS(C122-E121),ABS(C122-D122)) -> 1.14 | J122: 1.297186866
A123: 2013-06-26 | B123: 89.42 | C123: 89.97 | D123: 88.73 | E123: 89.8 | F123: 14446000 | G123: 86.76 | H123: 0.007713413684 | I123: =MAX(ABS(D123-E122),ABS(C123-E122),ABS(C123-D123)) -> 1.24 | J123: 1.29310209
A124: 2013-06-27 | B124: 90.24 | C124: 90.67 | D124: 90.03 | E124: 90.04 | F124: 12348000 | G124: 86.99 | H124: 0.00266904073 | I124: =MAX(ABS(D124-E123),ABS(C124-E123),ABS(C124-D124)) -> 0.87 | J124: 1.262880512
A125: 2013-06-28 | B125: 89.85 | C125: 90.75 | D125: 89.56 | E125: 90.35 | F125: 22984200 | G125: 87.29 | H125: 0.003437001 | I125: =MAX(ABS(D125-E124),ABS(C125-E124),ABS(C125-D125)) -> 1.19 | J125: 1.257674761
A126: 2013-07-01 | B126: 90.39 | C126: 91.13 | D126: 89.96 | E126: 90.3 | F126: 13182200 | G126: 87.24 | H126: -0.0005535566153 | I126: =MAX(ABS(D126-E125),ABS(C126-E125),ABS(C126-D126)) -> 1.17 | J126: 1.251412278
A127: 2013-07-02 | B127: 90.37 | C127: 91.1 | D127: 90.12 | E127: 90.64 | F127: 12320700 | G127: 87.57 | H127: 0.003758156297 | I127: =MAX(ABS(D127-E126),ABS(C127-E126),ABS(C127-D127)) -> 0.98 | J127: 1.232025687
A128: 2013-07-03 | B128: 90.63 | C128: 90.87 | D128: 90.14 | E128: 90.69 | F128: 5674000 | G128: 87.62 | H128: 0.0005514807397 | I128: =MAX(ABS(D128-E127),ABS(C128-E127),ABS(C128-D128)) -> 0.73 | J128: 1.196166709
A129: 2013-07-05 | B129: 91.1 | C129: 91.61 | D129: 90.57 | E129: 91.57 | F129: 8917900 | G129: 88.47 | H129: 0.00965660966 | I129: =MAX(ABS(D129-E128),ABS(C129-E128),ABS(C129-D129)) -> 1.04 | J129: 1.185011944
A130: 2013-07-08 | B130: 91.96 | C130: 92.53 | D130: 91.9 | E130: 92.25 | F130: 12086700 | G130: 89.13 | H130: 0.007398575801 | I130: =MAX(ABS(D130-E129),ABS(C130-E129),ABS(C130-D130)) -> 0.96 | J130: 1.168939662
A131: 2013-07-09 | B131: 92.64 | C131: 93.44 | D131: 92.25 | E131: 93.34 | F131: 12940000 | G131: 90.18 | H131: 0.0117464576 | I131: =MAX(ABS(D131-E130),ABS(C131-E130),ABS(C131-D131)) -> 1.19 | J131: 1.170443972
A132: 2013-07-10 | B132: 93.28 | C132: 93.39 | D132: 92.38 | E132: 92.82 | F132: 12430000 | G132: 89.68 | H132: =LN(E132/E131) -> -0.005586606709 | I132: =MAX(ABS(D132-E131),ABS(C132-E131),ABS(C132-D132)) -> 1.01 | J132: 1.158983689
A133: 2013-07-11 | B133: 93.8 | C133: 93.81 | D133: 93.04 | E133: 93.27 | F133: 16184700 | G133: 90.11 | H133: 0.004836378926 | I133: =MAX(ABS(D133-E132),ABS(C133-E132),ABS(C133-D133)) -> 0.99 | J133: 1.146913425
A134: 2013-07-12 | B134: 93.25 | C134: 93.45 | D134: 92.72 | E134: 93.4 | F134: 11370300 | G134: 90.24 | H134: 0.001392832496 | I134: =MAX(ABS(D134-E133),ABS(C134-E133),ABS(C134-D134)) -> 0.73 | J134: 1.117133895
A135: 2013-07-15 | B135: 93.19 | C135: 93.5 | D135: 93.09 | E135: 93.25 | F135: 8256200 | G135: 90.09 | H135: -0.001607286711 | I135: =MAX(ABS(D135-E134),ABS(C135-E134),ABS(C135-D135)) -> 0.41 | J135: 1.066624331
A136: 2013-07-16 | B136: 93.19 | C136: 93.47 | D136: 92.77 | E136: 93.3 | F136: 11413500 | G136: 90.14 | H136: 0.0005360493294 | I136: =MAX(ABS(D136-E135),ABS(C136-E135),ABS(C136-D136)) -> 0.7 | J136: 1.040436879
A137: 2013-07-17 | B137: 93.56 | C137: 93.74 | D137: 93.14 | E137: 93.46 | F137: 9393300 | G137: 90.3 | H137: 0.001713429419 | I137: =MAX(ABS(D137-E136),ABS(C137-E136),ABS(C137-D137)) -> 0.6 | J137: 1.008977102
A138: 2013-07-18 | B138: 93.8 | C138: 94.84 | D138: 93.71 | E138: 94.38 | F138: 10555400 | G138: 91.19 | H138: 0.009795649026 | I138: =MAX(ABS(D138-E137),ABS(C138-E137),ABS(C138-D138)) -> 1.38 | J138: 1.035478737
A139: 2013-07-19 | B139: 94.69 | C139: 95.25 | D139: 94.41 | E139: 95.17 | F139: 14431700 | G139: 91.95 | H139: 0.008335579786 | I139: =MAX(ABS(D139-E138),ABS(C139-E138),ABS(C139-D139)) -> 0.87 | J139: 1.023658827
A140: 2013-07-22 | B140: 94.87 | C140: 95.2 | D140: 94.78 | E140: 94.83 | F140: 9530400 | G140: 91.62 | H140: -0.003578951189 | I140: =MAX(ABS(D140-E139),ABS(C140-E139),ABS(C140-D140)) -> 0.42 | J140: 0.9805403397
A141: 2013-07-23 | B141: 94.86 | C141: 95.49 | D141: 94.84 | E141: 95.2 | F141: 7377400 | G141: 91.98 | H141: 0.003894126902 | I141: =MAX(ABS(D141-E140),ABS(C141-E140),ABS(C141-D141)) -> 0.66 | J141: 0.9576446011
A142: 2013-07-24 | B142: 95.31 | C142: 95.31 | D142: 94.42 | E142: 94.99 | F142: 8222800 | G142: 91.77 | H142: -0.002208318895 | I142: =MAX(ABS(D142-E141),ABS(C142-E141),ABS(C142-D142)) -> 0.89 | J142: 0.9528128439
A143: 2013-07-25 | B143: 94.69 | C143: 95.31 | D143: 94.42 | E143: 94.97 | F143: 10059800 | G143: 91.76 | H143: -0.0002105706472 | I143: =MAX(ABS(D143-E142),ABS(C143-E142),ABS(C143-D143)) -> 0.89 | J143: 0.9483262122
A144: 2013-07-26 | B144: 94.77 | C144: 94.86 | D144: 93.84 | E144: 94.79 | F144: 9721000 | G144: 91.58 | H144: -0.00189713379 | I144: =MAX(ABS(D144-E143),ABS(C144-E143),ABS(C144-D144)) -> 1.13 | J144: 0.9613029113
A145: 2013-07-29 | B145: 94.51 | C145: 94.52 | D145: 93.61 | E145: 94.03 | F145: 8844700 | G145: 90.85 | H145: -0.008050038176 | I145: =MAX(ABS(D145-E144),ABS(C145-E144),ABS(C145-D145)) -> 1.18 | J145: =(J144*13+I145)/14 -> 0.976924132
A146: 2013-07-30 | B146: 94.22 | C146: 94.33 | D146: 93.46 | E146: 93.81 | F146: 10470700 | G146: 90.63 | H146: -0.002342420151 | I146: =MAX(ABS(D146-E145),ABS(C146-E145),ABS(C146-D146)) -> 0.87 | J146: 0.969286694
A147: 2013-07-31 | B147: 93.93 | C147: 94.6 | D147: 93.38 | E147: 93.75 | F147: 14400800 | G147: 90.58 | H147: -0.0006397952873 | I147: =MAX(ABS(D147-E146),ABS(C147-E146),ABS(C147-D147)) -> 1.22 | J147: 0.9871947872
A148: 2013-08-01 | B148: 92.69 | C148: 93.1 | D148: 91.25 | E148: 92.73 | F148: 23117700 | G148: 89.59 | H148: -0.01093962004 | I148: =MAX(ABS(D148-E147),ABS(C148-E147),ABS(C148-D148)) -> 2.5 | J148: 1.095252302
A149: 2013-08-02 | B149: 92.46 | C149: 92.53 | D149: 91.34 | E149: 91.95 | F149: 14408600 | G149: 88.84 | H149: -0.008447093762 | I149: =MAX(ABS(D149-E148),ABS(C149-E148),ABS(C149-D149)) -> 1.39 | J149: 1.116305709
A150: 2013-08-05 | B150: 91.42 | C150: 91.76 | D150: 91.01 | E150: 91.59 | F150: 12625900 | G150: 88.49 | H150: -0.003922855635 | I150: =MAX(ABS(D150-E149),ABS(C150-E149),ABS(C150-D150)) -> 0.94 | J150: 1.103712444
A151: 2013-08-06 | B151: 91.33 | C151: 91.91 | D151: 91.28 | E151: 91.47 | F151: 11689200 | G151: 88.37 | H151: -0.001311045747 | I151: =MAX(ABS(D151-E150),ABS(C151-E150),ABS(C151-D151)) -> 0.63 | J151: 1.069875841
A152: 2013-08-07 | B152: 91.18 | C152: 91.55 | D152: 91.13 | E152: 91.34 | F152: 8163800 | G152: 88.25 | H152: -0.001422241911 | I152: =MAX(ABS(D152-E151),ABS(C152-E151),ABS(C152-D152)) -> 0.42 | J152: 1.023456138
A153: 2013-08-08 | B153: 91.93 | C153: 91.97 | D153: 91.28 | E153: 91.78 | F153: 11529500 | G153: 88.67 | H153: 0.00480560121 | I153: =MAX(ABS(D153-E152),ABS(C153-E152),ABS(C153-D153)) -> 0.69 | J153: 0.9996378427
A154: 2013-08-09 | B154: 91.2 | C154: 91.36 | D154: 90.43 | E154: 90.72 | F154: 9467800 | G154: 88.26 | H154: -0.01161656899 | I154: =MAX(ABS(D154-E153),ABS(C154-E153),ABS(C154-D154)) -> 1.35 | J154: 1.024663711
A155: 2013-08-12 | B155: 90.43 | C155: 90.43 | D155: 89.69 | E155: 89.89 | F155: 10133700 | G155: 87.45 | H155: -0.009191139394 | I155: =MAX(ABS(D155-E154),ABS(C155-E154),ABS(C155-D155)) -> 1.03 | J155: 1.025044875
A156: 2013-08-13 | B156: 89.85 | C156: 89.92 | D156: 89.14 | E156: 89.4 | F156: 10892700 | G156: 86.97 | H156: -0.005466018406 | I156: =MAX(ABS(D156-E155),ABS(C156-E155),ABS(C156-D156)) -> 0.78 | J156: 1.007541669
A157: 2013-08-14 | B157: 89.34 | C157: 89.48 | D157: 88.9 | E157: 88.95 | F157: 9797300 | G157: 86.53 | H157: -0.005046268068 | I157: =MAX(ABS(D157-E156),ABS(C157-E156),ABS(C157-D157)) -> 0.58 | J157: 0.9770029786
A158: 2013-08-15 | B158: 88.66 | C158: 88.87 | D158: 88.06 | E158: 88.16 | F158: 11273400 | G158: 85.76 | H158: -0.008921068707 | I158: =MAX(ABS(D158-E157),ABS(C158-E157),ABS(C158-D158)) -> 0.89 | J158: 0.9707884801
A159: 2013-08-16 | B159: 88.01 | C159: 88.49 | D159: 87.65 | E159: 87.91 | F159: 11872500 | G159: 85.52 | H159: -0.002839781542 | I159: =MAX(ABS(D159-E158),ABS(C159-E158),ABS(C159-D159)) -> 0.84 | J159: 0.9614464458
A160: 2013-08-19 | B160: 87.82 | C160: 87.87 | D160: 86.78 | E160: 86.92 | F160: 11745600 | G160: 84.56 | H160: -0.01132540847 | I160: =MAX(ABS(D160-E159),ABS(C160-E159),ABS(C160-D160)) -> 1.13 | J160: 0.9734859854
A161: 2013-08-20 | B161: 87.13 | C161: 87.87 | D161: 86.83 | E161: 86.83 | F161: 16498800 | G161: 84.47 | H161: -0.001035971316 | I161: =MAX(ABS(D161-E160),ABS(C161-E160),ABS(C161-D161)) -> 1.04 | J161: 0.9782369865
A162: 2013-08-21 | B162: 86.95 | C162: 87.35 | D162: 86.39 | E162: 86.42 | F162: 12766900 | G162: 84.07 | H162: -0.004733053569 | I162: =MAX(ABS(D162-E161),ABS(C162-E161),ABS(C162-D162)) -> 0.96 | J162: 0.9769343446
A163: 2013-08-22 | B163: 86.58 | C163: 87.42 | D163: 86.45 | E163: 86.98 | F163: 10199900 | G163: 84.62 | H163: 0.006459076666 | I163: =MAX(ABS(D163-E162),ABS(C163-E162),ABS(C163-D163)) -> 1 | J163: 0.9785818914
A164: 2013-08-23 | B164: 87.15 | C164: 87.69 | D164: 86.76 | E164: 87.52 | F164: 9206400 | G164: 85.14 | H164: =LN(E164/E163) -> 0.006189131504 | I164: =MAX(ABS(D164-E163),ABS(C164-E163),ABS(C164-D164)) -> 0.93 | J164: 0.9751117563
A165: 2013-08-26 | B165: 87.5 | C165: 87.7 | D165: 86.82 | E165: 87.09 | F165: 10654700 | G165: 84.72 | H165: -0.004925271969 | I165: =MAX(ABS(D165-E164),ABS(C165-E164),ABS(C165-D165)) -> 0.88 | J165: 0.9683180594
A166: 2013-08-27 | B166: 86.62 | C166: 87.49 | D166: 86.58 | E166: 86.82 | F166: 13960200 | G166: 84.46 | H166: -0.003105056833 | I166: =MAX(ABS(D166-E165),ABS(C166-E165),ABS(C166-D166)) -> 0.91 | J166: 0.9641524837
A167: 2013-08-28 | B167: 87.28 | C167: 88.99 | D167: 87.28 | E167: 88.84 | F167: 17738800 | G167: 86.43 | H167: 0.02299998915 | I167: =MAX(ABS(D167-E166),ABS(C167-E166),ABS(C167-D167)) -> 2.17 | J167: 1.050284449
A168: 2013-08-29 | B168: 88.63 | C168: 88.63 | D168: 87.23 | E168: 87.27 | F168: 11407800 | G168: 84.9 | H168: -0.01783023785 | I168: =MAX(ABS(D168-E167),ABS(C168-E167),ABS(C168-D168)) -> 1.61 | J168: 1.090264131
A169: 2013-08-30 | B169: 87.39 | C169: 87.55 | D169: 86.79 | E169: 87.16 | F169: 12480400 | G169: 84.79 | H169: -0.001261251099 | I169: =MAX(ABS(D169-E168),ABS(C169-E168),ABS(C169-D169)) -> 0.76 | J169: 1.066673836
